bitfinex-derivatives/quotes_ETHF0:USTF0_20251103
["timestamp","ask_amount","ask_price","bid_price","bid_amount"]
[1762199129404,0.72832,3642.3,3642.2,9.839]
[1762199129907,0.234,3642.3,3642.2,9.839]
[1762199132405,0.1461,3642.5,3642.3,0.49432]
[1762199133915,0.04334592,3642.5,3642.3,0.49432]
[1762199134114,0.04334592,3642.5,3642.4,9.84]
[1762199134412,0.04334592,3642.5,3642.4,50.64]
[1762199134615,0.04334592,3642.5,3642.4,51.13431]
[1762199135216,0.04334592,3642.5,3642.4,51.13131]
[1762199136415,0.1461,3643.5,3642.9,0.49424]
[1762199136613,0.1461,3643.5,3642.9,13.53904]
[1762199145742,0.3801,3643.0,3642.9,13.53904]
[1762199146340,0.1461,3643.0,3642.9,13.53904]
[1762199147042,0.13083264,3643.5,3643.4,0.49417]
[1762199147239,0.1354948,3644.0,3643.9,0.49411]
[1762199147544,0.1354948,3644.0,3643.9,13.51391]
[1762199147745,0.1354948,3644.0,3643.9,54.31391]
[1762199148146,0.0106052,3644.5,3644.4,0.49404]
[1762199148338,0.0106052,3644.5,3644.4,13.51584]
[1762199148940,0.025,3644.7,3644.6,0.49401]
[1762199149145,0.0282276,3644.7,3644.6,0.495957]
[1762199149648,0.1472,3645.0,3644.6,0.495957]
[1762199149649,0.1189724,3645.0,3644.9,0.49397]
[1762199149837,0.1189724,3645.0,3644.9,13.51577]
[1762199150042,0.1189724,3645.0,3644.9,54.31577]
[1762199150242,0.1472,3645.5,3645.4,0.4939]
[1762199150443,0.14961463,3645.5,3645.4,13.5217]
[1762199156952,0.14961463,3645.5,3645.4,13.0278]
[1762199157156,0.14961463,3645.5,3645.4,13.5217]
[1762199157459,0.38731463,3645.5,3645.4,13.0058]
[1762199157653,0.38731463,3645.5,3645.4,13.4997]
[1762199157845,0.38731463,3645.5,3644.9,40.8]
[1762199157846,0.2377,3645.1,3645.0,3.70174]
[1762199158051,0.2377,3645.1,3645.0,13.49574]
[1762199158349,0.2377,3645.3,3645.2,0.49393]
[1762199158553,0.2377,3645.3,3645.2,10.28793]
[1762199158749,0.2377,3645.3,3645.2,9.794]
[1762199159758,0.73162,3645.3,3645.2,9.794]
[1762199160556,0.73165,3645.1,3645.0,12.9988]
[1762199161351,0.2377,3645.1,3645.0,13.49276]
[1762199162158,0.14961463,3645.5,3645.4,0.49391]
[1762199162459,0.14961463,3645.5,3645.4,13.49071]
[1762199163064,0.1472,3646.0,3645.9,0.49384]
[1762199163357,0.3849,3646.0,3645.9,13.49364]
[1762199163558,0.87873,3646.0,3645.9,3.2078]
[1762199164056,0.88085512,3646.0,3645.9,3.2078]
[1762199165055,0.14932512,3646.0,3645.5,9.795]
[1762199165255,0.73158,3645.6,3645.5,9.795]
[1762199165458,1.2346,3645.9,3645.3,3.2078]
[1762199165459,0.73161,3645.4,3645.3,3.2078]
[1762199166155,0.2377,3644.9,3644.8,3.2078]
[1762199166354,0.1472,3645.0,3644.9,0.49397]
[1762199166556,0.3849,3645.0,3644.9,10.28497]
[1762199167565,0.1472,3645.0,3644.9,10.28497]
[1762199168262,0.1472,3645.5,3645.4,0.4939]
[1762199168461,0.1472,3645.5,3645.4,13.4997]
[1762199170372,0.14932512,3646.0,3645.9,0.49384]
[1762199170666,0.14932512,3646.0,3645.9,13.49864]
[1762199170860,0.1472,3646.5,3646.3,0.49377]
[1762199171060,0.3849,3646.5,3646.4,13.0188]
[1762199171265,0.2377,3646.1,3646.0,3.2078]
[1762199171569,0.87872,3646.0,3645.9,9.811]
[1762199172064,0.38829634,3646.0,3645.9,9.811]
[1762199173866,3.59609634,3646.0,3645.9,9.811]
[1762199174062,0.2377,3645.3,3645.2,3.2078]
[1762199174567,0.49391,3645.4,3645.2,3.2078]
[1762199174869,0.1472,3645.5,3645.2,3.70173]
[1762199175167,0.64109,3645.5,3645.3,0.49391]
[1762199175462,0.1472,3645.5,3645.3,0.49391]
[1762199175669,0.1472,3645.5,3645.4,9.807]
[1762199175868,0.3848,3645.5,3645.4,9.807]
[1762199177164,0.1472,3645.5,3645.4,9.807]
[1762199177963,0.1472,3645.5,3645.4,10.3009]
[1762199178671,0.15059634,3646.0,3645.9,0.49383]
[1762199178869,0.15059634,3646.0,3645.9,13.51063]
[1762199181369,0.88201634,3646.0,3645.9,3.2078]
[1762199181668,0.88201634,3646.0,3645.2,42.76843676]
[1762199181669,0.3766,3645.5,3645.4,3.2078]
[1762199182170,0.63289,3645.5,3645.4,3.2078]
[1762199182570,0.87049,3645.5,3645.4,3.2078]
[1762199182966,0.73153,3645.2,3644.6,0.001947]
[1762199183173,0.7316,3644.7,3644.6,0.001947]
[1762199185377,0.49406,3644.3,3644.1,9.818]
[1762199185873,0.4941,3644.0,3643.8,0.49411]
[1762199186066,0.2376,3643.9,3643.8,0.49411]
[1762199186265,0.2376,3643.9,3642.8,1.96843676]
[1762199186266,0.2376,3643.4,3643.3,3.2078]
[1762199186471,0.23982757,3643.4,3643.3,3.21014656]
[1762199186975,0.00222757,3643.4,3643.3,3.21014656]
[1762199187978,0.00222757,3643.4,3643.3,3.27084656]
[1762199188177,0.00222757,3643.4,3643.3,13.10084656]
[1762199189171,0.00222757,3643.4,3643.3,13.03714656]
[1762199190578,0.00222757,3643.4,3643.3,13.09744656]
[1762199192378,0.00222757,3643.4,3643.3,13.59163656]
[1762199193281,0.00222757,3643.4,3643.3,13.03714656]
[1762199193484,0.72339757,3643.4,3643.3,3.21014656]
[1762199193782,0.72339757,3643.4,3643.3,0.00234656]
[1762199193980,0.72125,3642.8,3642.7,9.818]
[1762199194177,0.227,3642.8,3642.7,9.818]
[1762199194487,0.63413,3643.0,3642.7,9.818]
[1762199194791,0.49425,3642.9,3642.7,10.31227]
[1762199195087,0.49425,3642.9,3642.7,10.31490347]
[1762199195482,0.1399,3643.0,3642.7,10.31490347]
[1762199195677,0.63413,3643.0,3642.7,9.82063347]
[1762199195887,0.49425,3642.8,3642.7,9.82063347]
[1762199196186,0.1399,3643.0,3642.7,9.82063347]
[1762199196187,0.63414,3643.0,3642.7,9.82063347]
[1762199196389,0.49425,3642.9,3642.7,10.31490347]
[1762199196587,0.1399,3643.0,3642.8,0.49426]
[1762199196987,0.63413,3643.0,3642.8,0.49426]
[1762199197184,0.227,3642.8,3642.7,0.00263347]
[1762199197390,0.72126,3642.8,3642.7,0.00263347]
[1762199198186,0.1399,3643.0,3642.7,0.00263347]
[1762199198187,0.1399,3643.0,3642.9,0.49424]
[1762199198491,0.1399,3643.0,3642.9,3.76234]
[1762199198694,0.00222757,3643.4,3643.3,0.55449]
[1762199198988,0.00222757,3643.4,3643.3,13.57729]
[1762199201695,0.00222757,3643.4,3643.3,54.37729]
[1762199203491,0.00222757,3643.4,3643.3,44.0078]
[1762199203698,0.00222757,3643.4,3643.3,54.30799]
[1762199205187,0.00222757,3643.4,3643.3,13.56679]
[1762199205696,0.00222757,3643.4,3643.3,54.36679]
[1762199206096,0.00222757,3643.4,3643.3,13.56679]
[1762199206302,0.00222757,3643.4,3643.3,13.50799]
[1762199206493,0.00222757,3643.4,3643.3,13.56679]
[1762199208996,1.23499,3644.8,3643.3,13.56679]
[1762199208997,0.49395,3645.1,3644.3,0.55285]
[1762199209195,0.63386,3645.0,3644.7,0.49399]
[1762199209499,0.3617,3645.0,3644.9,0.49397]
[1762199210088,0.14275266,3645.0,3644.9,10.35777]
[1762199211100,0.14275266,3645.0,3644.9,10.29897]
[1762199213803,0.2218,3644.8,3644.2,3.2078]
[1762199214002,0.2218,3644.3,3644.2,13.49687]
[1762199214403,0.63383,3644.5,3644.4,0.49404]
[1762199214806,0.1398,3644.5,3644.4,0.49404]
[1762199215006,0.49404,3644.4,3644.2,13.49686]
[1762199215207,0.1398,3644.5,3644.2,13.0028]
[1762199215409,0.1398,3644.5,3644.4,0.49404]
[1762199215707,0.49405,3644.4,3644.2,13.0028]
[1762199216006,0.49407,3644.3,3644.2,13.0028]
[1762199216212,0.1398,3644.5,3644.2,13.49688]
[1762199216513,0.49405,3644.4,3644.3,0.49407]
[1762199216814,0.71587,3644.3,3644.2,13.0028]
[1762199217512,0.2218,3644.3,3644.2,13.49688]
[1762199217713,0.71586,3644.3,3644.2,13.49688]
[1762199217914,0.71586,3644.3,3644.2,10.28908]
[1762199218108,0.1398,3644.5,3644.3,0.49406]
[1762199219015,0.1398,3644.5,3644.4,0.49405]
[1762199219522,0.63384,3644.5,3644.4,0.49405]
[1762199219709,0.49406,3644.4,3644.3,0.49406]
[1762199220310,0.1398,3644.5,3644.4,0.49405]
[1762199220509,0.1398,3644.5,3644.2,9.795]
[1762199220709,0.14275266,3645.0,3644.9,0.55278]
[1762199221211,0.18043372,3645.0,3644.9,0.55278]
[1762199221811,0.18043372,3645.0,3644.9,0.0588]
[1762199222211,0.18043372,3645.0,3644.9,0.55278]
[1762199223309,0.04053372,3645.0,3644.9,0.55278]
[1762199223508,0.1398,3646.0,3645.9,0.49383]
[1762199223711,3.2078,3646.8,3645.8,4.44241]
[1762199223906,3.2078,3646.8,3646.4,0.55257]
[1762199224109,3.2078,3646.9,3646.4,0.55257]
[1762199224311,0.1398,3647.0,3646.4,3.76037]
[1762199224519,0.00229201,3646.5,3646.4,3.76236687]
[1762199224709,0.1398,3647.0,3646.9,0.0588]
[1762199224911,0.1398,3647.0,3646.9,13.0566]
[1762199225708,0.1433282,3647.0,3646.9,13.0566]
[1762199226108,0.3651282,3647.0,3646.9,3.2078]
[1762199226411,0.0035282,3647.0,3646.9,0.0588]
[1762199226818,0.0035282,3647.0,3646.9,40.8588]
[1762199229215,0.1433282,3647.0,3646.9,40.8588]
[1762199229426,0.1433282,3647.0,3646.9,50.6418]
[1762199229617,0.1433282,3647.0,3646.9,50.583]
[1762199230323,0.1433282,3647.0,3646.9,50.581]
[1762199230820,0.1433282,3647.0,3646.9,40.8]
[1762199231016,0.3651282,3647.0,3646.9,40.8]
[1762199231223,0.1433282,3647.0,3646.9,50.581]
[1762199231619,0.1433282,3647.0,3646.9,51.0747]
[1762199231916,0.6370182,3647.0,3646.9,50.581]
[1762199232516,0.6370182,3647.0,3646.9,9.781]
[1762199232918,0.71552,3646.8,3646.7,3.2078]
[1762199233124,0.63356,3646.5,3646.4,0.00199687]
[1762199233324,0.85536,3646.5,3646.4,0.00199687]
[1762199234621,0.63356,3646.5,3646.4,0.00199687]
[1762199235417,0.87796,3646.5,3646.4,0.00199687]
[1762199236222,0.1358,3645.5,3645.4,3.2675]
[1762199236524,0.1358,3645.5,3645.4,13.0465]
[1762199237228,0.1358,3645.5,3645.4,13.0488222]
[1762199238316,0.1358,3645.5,3645.4,3.2698222]
[1762199238524,0.1358,3645.5,3645.4,13.0488222]
[1762199239219,0.1358,3646.0,3645.4,13.0488222]
[1762199239421,0.1358,3646.0,3645.9,0.0597]
[1762199239625,0.1358,3646.0,3645.9,9.8387]
[1762199239626,0.62962,3646.0,3645.9,9.8387]
[1762199240125,0.1358,3646.0,3645.9,9.8387]
[1762199241830,0.62961,3646.0,3645.9,9.8387]
[1762199242130,0.1358,3646.0,3645.9,9.8387]
[1762199242528,0.62961,3646.0,3645.9,9.8387]
[1762199242728,0.1358,3646.0,3645.9,9.8387]
[1762199242924,0.87401,3646.0,3645.9,9.779]
[1762199243124,0.73822,3645.9,3645.8,3.2078]
[1762199243328,0.1358,3645.5,3645.4,3.7637122]
[1762199243526,0.1358,3645.5,3645.4,13.0488222]
[1762199243731,0.49384,3645.8,3645.4,13.0488222]
[1762199244030,0.49384,3645.9,3645.4,3.2101222]
[1762199244231,0.1358,3645.5,3645.4,3.2698222]
[1762199244430,0.1358,3646.0,3645.4,13.0488222]
[1762199244629,7.0318,3646.4,3646.3,0.0597]
[1762199244926,3.2078,3646.8,3646.7,0.0597]
[1762199245124,3.2078,3646.8,3646.7,9.8387]
[1762199245322,0.1358,3646.5,3646.1,40.8]
[1762199245629,0.6370182,3647.0,3646.7,0.0597]
[1762199246129,0.1433282,3647.0,3646.7,0.0597]
[1762199246828,0.4937,3646.9,3646.4,12.9868]
[1762199247226,0.4937,3646.9,3646.4,13.48055]
[1762199247625,0.6370082,3647.0,3646.5,0.49373]
[1762199248729,0.1433282,3647.0,3646.4,12.9868]
[1762199248924,0.49369,3646.9,3646.5,0.49374]
[1762199249228,0.1433282,3647.0,3646.5,0.49374]
[1762199249229,0.6370082,3647.0,3646.5,0.49374]
[1762199249425,0.6370082,3647.0,3646.6,0.49373]
[1762199249931,0.6370082,3647.0,3646.5,0.49374]
[1762199250230,0.1433282,3647.0,3646.4,12.9868]
[1762199250433,0.1433282,3647.0,3646.5,0.49374]
[1762199250627,0.1433282,3647.0,3646.4,12.9868]
[1762199250822,0.1433282,3647.0,3646.5,40.8]
[1762199251029,0.4937,3646.9,3646.5,40.8]
[1762199251228,0.1433282,3647.0,3646.5,44.0078]
[1762199251429,0.1433282,3647.0,3646.6,0.49371]
[1762199252037,0.1433282,3647.0,3646.9,3.2679]
[1762199253131,0.1433282,3647.0,3646.9,3.76159]
[1762199253733,0.1433282,3647.0,3646.9,3.2679]
[1762199254433,0.0035282,3647.0,3646.9,3.2679]
[1762199254632,0.0035282,3647.0,3646.9,3.76159]
[1762199255030,0.0035282,3647.0,3646.9,3.2679]
[1762199255334,0.1446282,3647.0,3646.9,3.2679]
[1762199255536,0.8645982,3647.0,3646.5,44.50154]
[1762199255832,0.1446282,3647.0,3646.6,9.777]
[1762199256031,0.1446282,3647.0,3646.5,44.0078]
[1762199256231,0.72002,3646.7,3646.6,9.777]
[1762199257339,0.49372,3646.7,3646.6,9.777]
[1762199257732,0.49372,3646.7,3646.6,9.8371]
[1762199258537,0.4937,3646.8,3646.6,0.0601]
[1762199258738,0.49371,3646.7,3646.6,0.0601]
[1762199258937,0.49371,3646.7,3646.6,9.8361]
[1762199261035,0.2263,3646.6,3646.5,3.2078]
[1762199261242,0.2263,3646.6,3645.2,1.23478]
[1762199261243,0.2263,3646.1,3646.0,3.2078]
[1762199261435,0.72009,3646.1,3646.0,10.4648]
[1762199262639,0.49379,3646.1,3646.0,10.4648]
[1762199263136,0.49379,3646.1,3646.0,12.9838]
[1762199263840,0.1411,3646.5,3646.0,12.9838]
[1762199263841,0.1411,3646.5,3646.4,0.0601]
[1762199264146,0.0035282,3647.0,3646.9,0.0601]
[1762199264436,0.1423282,3647.0,3646.9,9.8361]
[1762199264644,0.8636982,3647.0,3646.9,9.776]
[1762199264943,0.4937,3646.9,3646.8,9.776]
[1762199265841,0.49373,3646.6,3646.5,40.8]
[1762199266040,0.49373,3646.6,3646.5,50.576]
[1762199266240,0.49373,3646.6,3646.5,40.8]
[1762199266445,0.49374,3646.5,3646.4,0.0597]
[1762199266642,0.63254,3646.5,3646.4,9.8357]
[1762199266844,0.1423282,3647.0,3646.6,0.55342]
[1762199267040,0.6359982,3647.0,3646.9,0.0597]
[1762199267234,0.1423282,3647.0,3646.9,0.0597]
[1762199267439,0.6359982,3647.0,3646.9,0.0597]
[1762199267640,0.1423282,3647.0,3646.9,0.0597]
[1762199268147,0.6359982,3647.0,3646.9,0.0597]
[1762199268349,0.1423282,3647.0,3646.9,0.0597]
[1762199268538,0.6359982,3647.0,3646.9,0.0597]
[1762199268740,0.4937,3646.9,3646.7,9.776]
[1762199269847,0.1423282,3647.0,3646.7,9.776]
[1762199270542,0.49369,3646.9,3646.7,9.776]
[1762199270744,0.49368,3646.9,3646.8,0.0597]
[1762199271244,0.1423282,3647.0,3646.9,0.0597]
[1762199272056,0.6359982,3647.0,3646.9,0.0597]
[1762199272541,0.1423282,3647.0,3646.9,0.0597]
[1762199273146,0.6359982,3647.0,3646.9,0.0597]
[1762199274946,0.1423282,3647.0,3646.9,0.0597]
[1762199276344,0.8636982,3647.0,3646.9,0.0597]
[1762199276647,0.1423282,3647.0,3646.9,0.55338]
[1762199276842,0.0035282,3647.0,3646.9,0.55338]
[1762199277747,0.49356,3647.9,3647.8,0.0597]
[1762199277943,0.1358,3648.0,3647.9,0.0597]
[1762199278345,0.62934,3648.0,3647.9,0.0597]
[1762199278551,0.1358,3648.0,3647.8,9.773]
[1762199278748,0.72125,3647.9,3647.8,9.773]
[1762199279144,0.2277,3647.9,3647.8,9.98844916]
[1762199279347,0.72129,3647.6,3647.5,3.2078]
[1762199279653,0.49362,3647.4,3647.1,3.2078]
[1762199279846,0.49362,3647.4,3647.2,9.773]
[1762199280455,0.49363,3647.3,3647.2,9.8327]
[1762199281449,0.49363,3647.3,3647.2,0.0597]
[1762199281646,0.49366,3647.1,3647.0,0.21577739]
[1762199281848,0.49366,3647.1,3647.0,9.8317]
[1762199282054,0.7214,3646.8,3646.7,3.2078]
[1762199282844,0.49371,3646.7,3646.6,9.772]
[1762199283056,0.49377,3646.3,3646.2,3.2078]
[1762199283354,0.72147,3646.3,3646.2,12.9788]
[1762199283559,0.72147,3646.3,3646.2,3.2078]
[1762199283853,0.63261,3646.0,3645.9,8.475]
[1762199284048,0.72152,3645.9,3645.8,3.2078]
[1762199284355,0.72155,3645.7,3645.6,9.771]
[1762199284557,0.63261,3646.0,3645.6,10.32456]
[1762199284748,0.1388,3646.5,3646.4,0.0597]
[1762199284952,0.49369,3646.9,3646.4,12.9788]
[1762199285153,0.1388,3646.5,3646.4,13.0385]
[1762199286053,0.63247,3647.0,3646.4,13.53224]
[1762199286353,0.4937,3646.8,3646.4,13.53224]
[1762199286658,0.1388,3646.5,3646.4,13.0385]
[1762199286854,0.1388,3647.0,3646.5,0.49374]
[1762199286855,0.63248,3647.0,3646.5,0.49374]
[1762199287062,0.63248,3647.0,3646.4,12.9788]
[1762199287063,0.49362,3647.4,3647.0,0.49367]
[1762199287259,0.1388,3647.5,3647.3,3.2078]
[1762199287455,0.6324,3647.5,3647.3,3.2078]
[1762199287757,3.2078,3648.1,3647.4,0.0597]
[1762199287951,0.49357,3647.8,3647.7,0.0597]
[1762199288955,0.49359,3647.7,3647.5,9.771]
[1762199290757,4.58028,3648.5,3647.7,0.0597]
[1762199290961,0.49353,3648.1,3647.9,0.0597]
[1762199291159,0.00341431,3648.0,3647.9,0.0597]
[1762199291352,1.431e-05,3648.0,3647.9,0.0597]
[1762199291858,1.431e-05,3648.0,3647.9,40.8597]
[1762199292155,1.431e-05,3648.0,3647.9,41.35325]
[1762199292360,0.1388,3649.0,3648.6,0.0563]
[1762199292361,0.49344,3648.7,3648.6,0.0563]
[1762199292555,0.49344,3648.7,3648.6,13.0341]
[1762199293054,0.49344,3648.7,3648.6,9.8263]
[1762199293360,0.00242864,3648.7,3648.6,13.53042794]
[1762199293558,0.00242864,3648.7,3648.6,13.03697794]
[1762199294060,0.72356864,3648.7,3648.6,9.77287794]
[1762199294257,0.72356864,3648.7,3648.6,0.00287794]
[1762199294458,0.49586864,3648.7,3648.6,9.77187794]
[1762199294659,0.49586864,3648.7,3648.6,0.00287794]
[1762199294860,0.73256864,3648.7,3648.6,9.77187794]
[1762199295352,0.2367,3648.3,3648.2,3.2078]
[1762199295549,0.49349,3648.3,3648.2,3.264]
[1762199295755,0.62608,3648.5,3648.4,0.0562]
[1762199295951,0.00242864,3648.7,3648.6,0.0562]
[1762199296356,0.00242864,3648.7,3648.6,3.2660352]
[1762199296558,0.00242864,3648.7,3648.6,3.7594852]
[1762199296963,0.00242864,3648.7,3648.6,3.2660352]
[1762199298364,0.00242864,3648.7,3648.6,3.7594852]
[1762199298565,0.00242864,3648.7,3648.6,3.2660352]
[1762199299866,0.49586864,3648.7,3648.6,3.2660352]
[1762199301458,0.00242864,3648.7,3648.6,3.7594852]
[1762199302255,0.1388,3649.5,3649.1,0.0538]
[1762199302561,0.1388,3649.5,3648.8,0.49342]
[1762199302562,0.49336,3649.3,3649.2,3.2078]
[1762199302867,0.1388,3649.5,3649.2,12.9738]
[1762199303061,0.1388,3649.5,3649.2,13.0275]
[1762199303062,0.49336,3649.3,3649.2,13.0275]
[1762199303261,0.49571533,3649.3,3649.2,13.0275]
[1762199305366,0.49571533,3649.3,3649.2,12.9738]
[1762199305966,0.73014,3648.7,3648.6,0.0020352]
[1762199306266,0.73014,3648.7,3648.6,6.5640352]
[1762199306463,0.73014,3648.7,3648.6,0.0020352]
[1762199307171,0.73022,3648.1,3648.0,5.168]
[1762199307668,0.49358,3647.6,3647.5,3.2078]
[1762199307969,0.49369,3646.8,3646.6,3.2078]
[1762199308264,0.237,3646.7,3646.6,0.00280566]
[1762199308461,0.24049737,3646.7,3646.6,0.00280566]
[1762199309561,0.49381,3646.0,3645.6,3.2078]
[1762199309769,0.63251,3646.0,3645.7,9.765]
[1762199309965,0.1387,3646.0,3645.7,10.25883]
[1762199310268,0.1387,3646.0,3645.7,9.765]
[1762199310465,0.1387,3646.0,3645.9,0.0536]
[1762199310859,0.63264,3645.0,3644.8,3.2078]
[1762199311066,0.63264,3645.0,3643.5,0.0536]
[1762199311067,0.237,3644.1,3644.0,3.2078]
[1762199311270,0.1387,3644.5,3644.0,3.2078]
[1762199311772,0.49405,3644.2,3644.0,3.2078]
[1762199311975,0.49736507,3644.2,3644.0,3.20993218]
[1762199312162,0.49736507,3644.2,3644.0,0.00213218]
[1762199312568,0.00331507,3644.2,3644.0,0.49619218]
[1762199312770,0.00331507,3644.2,3644.1,3.2078]
[1762199313271,0.237,3644.1,3644.0,0.00213218]
[1762199313568,0.73105,3644.1,3644.0,0.00213218]
[1762199314476,0.237,3644.1,3644.0,0.00213218]
[1762199318172,0.00331507,3644.2,3644.0,3.70398218]
[1762199318378,0.00331507,3644.2,3644.1,0.0536]
[1762199319370,0.24031507,3644.2,3644.0,3.20993218]
[1762199319575,0.237,3644.1,3644.0,0.00213218]
[1762199325476,0.237,3644.1,3644.0,3.218e-05]
[1762199325687,0.2306,3643.7,3643.6,3.2078]
[1762199326577,0.2306,3643.7,3643.6,3.21020198]
[1762199327978,0.7247,3643.7,3643.6,3.21020198]
[1762199330180,0.4941,3643.7,3643.6,3.21020198]
[1762199330382,0.7247,3643.7,3643.6,3.21020198]
[1762199331173,0.7247,3643.7,3643.6,0.00240198]
[1762199335081,0.6267,3643.0,3642.7,3.70202]
[1762199335280,0.2306,3642.9,3642.8,0.49422]
[1762199335785,0.49421,3642.9,3642.7,3.70204]
[1762199335991,0.1325,3643.0,3642.8,0.49422]
[1762199336585,0.1325,3643.0,3642.9,0.49421]
[1762199336888,0.8573,3643.0,3642.8,0.49422]
[1762199337685,0.2306,3642.8,3642.7,3.70465963]
[1762199337880,0.72482,3642.8,3642.7,2.93740555]
[1762199338086,0.72489,3642.3,3642.2,3.2078]
[1762199338282,3.2078,3643.2,3642.7,0.49425]
[1762199338481,0.62671,3643.0,3642.8,0.0562]
[1762199338789,0.62671,3643.0,3642.7,0.49424]
[1762199338983,0.49422,3642.9,3642.7,0.00289286]
[1762199339184,0.2306,3642.8,3642.7,0.00289286]
[1762199339478,0.2306,3642.8,3642.7,0.49714286]
[1762199339786,0.1325,3643.0,3642.9,0.49423]
[1762199340684,0.64887622,3643.0,3642.9,0.55043]
[1762199340890,0.1325,3643.5,3643.4,0.55036]
[1762199341084,0.1325,3643.5,3643.4,3.264]
[1762199341280,1.50602579,3643.5,3643.4,3.2078]
[1762199341585,1.26834948,3643.5,3643.4,3.2078]
[1762199341786,1.01187579,3643.5,3643.4,3.2078]
[1762199341984,1.50602579,3643.5,3643.4,3.2078]
[1762199342180,0.1325,3644.0,3643.9,0.55029]
[1762199342377,0.00331507,3644.2,3644.1,0.0562]
[1762199342883,0.1325,3644.0,3643.9,3.2078]
[1762199343084,0.85718,3644.0,3643.9,3.2078]
[1762199343284,0.00331507,3644.2,3644.0,0.49407]
[1762199343490,0.63821744,3644.1,3644.0,0.49407]
[1762199343787,0.63821744,3644.1,3644.0,0.55027]
[1762199343979,0.63821744,3644.1,3643.9,3.2078]
[1762199344184,0.1325,3644.0,3643.9,3.75809]
[1762199344587,0.1325,3644.0,3643.9,3.264]
[1762199344786,0.1325,3644.0,3643.9,3.2078]
[1762199345192,0.1325,3644.0,3643.9,3.70189]
[1762199345385,0.1325,3644.0,3643.9,3.2078]
[1762199345686,0.85718,3644.0,3643.5,53.7808]
[1762199345890,0.85718,3644.0,3643.6,0.49413]
[1762199346589,0.72473,3643.6,3643.5,3.2078]
[1762199346784,0.1325,3643.5,3643.0,9.772]
[1762199347100,0.1325,3644.0,3643.5,0.49415]
[1762199347396,0.1325,3643.5,3643.4,3.2078]
[1762199348395,0.7248,3643.1,3643.0,9.772]
[1762199348588,0.49424,3642.9,3642.7,0.00289286]
[1762199348792,0.49424,3642.8,3642.7,0.00289286]
[1762199348991,0.72484,3642.8,3642.7,0.00289286]
[1762199349286,1.3632318,3642.8,3642.7,0.00289286]
[1762199350195,0.8689918,3642.8,3642.7,0.00289286]
[1762199350493,0.2306,3642.8,3642.7,0.00289286]
[1762199350993,1.47725655,3643.9,3642.9,0.0562]
[1762199351187,0.49409,3643.9,3643.4,0.49416]
[1762199351383,0.00331507,3644.2,3643.9,0.49409]
[1762199351590,0.00331507,3644.2,3644.1,0.55027]
[1762199351792,0.00331507,3644.2,3644.1,0.49407]
[1762199351991,0.1325,3644.0,3643.9,3.2078]
[1762199352190,0.00331507,3644.2,3644.1,0.49407]
[1762199352497,0.00331507,3644.2,3644.1,0.55027]
[1762199353196,0.00331507,3644.2,3643.9,3.2078]
[1762199353396,0.49407,3644.1,3643.9,3.2078]
[1762199353591,0.1325,3643.8,3643.5,12.9788]
[1762199353797,0.00331507,3644.2,3643.5,12.9788]
[1762199353798,0.00331507,3644.2,3644.1,0.55027]
[1762199354096,0.00331507,3644.2,3644.1,13.52907]
[1762199354597,0.49393,3645.1,3644.7,0.49398]
[1762199354798,0.6365006,3644.9,3644.7,0.49398]
[1762199354988,0.49396,3644.9,3644.6,3.2078]
[1762199355392,0.1325,3645.5,3644.6,3.2078]
[1762199355586,0.2245,3644.7,3644.6,3.2078]
[1762199355987,0.2245,3644.7,3644.2,3.2078]
[1762199356191,0.1374,3644.4,3644.2,3.2078]
[1762199356392,0.1374,3644.4,3644.2,3.70185]
[1762199356894,0.13596248,3645.0,3644.8,0.49396]
[1762199357095,0.13596248,3645.0,3644.8,0.55006]
[1762199357602,0.00346248,3645.0,3644.9,0.55006]
[1762199357802,0.00346248,3645.0,3644.9,0.0561]
[1762199357994,0.00346248,3645.0,3644.9,0.55006]
[1762199358301,0.14086248,3645.0,3644.9,0.49396]
[1762199359396,0.14086248,3645.0,3644.9,0.55006]
[1762199359902,0.14086248,3645.0,3644.3,3.2078]
[1762199359903,0.1374,3644.4,3644.3,3.2078]
[1762199360497,0.1374,3644.4,3644.3,3.70185]
[1762199360798,0.3619,3644.4,3644.3,3.2078]
[1762199360998,0.85593,3644.4,3644.3,3.2078]
[1762199361204,0.71855,3644.2,3644.1,9.769]
[1762199361400,0.71858,3644.0,3643.9,3.2078]
[1762199361704,0.71858,3644.0,3643.0,1.23554]
[1762199361705,0.63152,3643.8,3643.6,9.768]
[1762199361901,0.1374,3643.2,3643.1,3.702]
[1762199362113,0.1374,3643.2,3643.1,13.47]
[1762199362804,0.1374,3643.2,3643.1,12.9758]
[1762199364496,0.3619,3643.2,3643.1,9.768]
[1762199364701,0.1374,3643.2,3643.1,9.768]
[1762199364899,0.1374,3643.2,3643.1,10.2622]
[1762199365299,0.1374,3643.2,3643.1,10.3183]
[1762199365506,0.1374,3643.8,3643.7,0.49412]
[1762199365806,0.1374,3643.8,3643.7,0.55022]
[1762199366211,0.1374,3643.8,3643.6,0.49413]
[1762199366411,0.63151,3643.8,3643.5,0.49415]
[1762199366615,0.1374,3643.2,3643.1,3.2078]
[1762199366810,0.1374,3643.2,3643.1,3.702]
[1762199367114,0.1374,3643.8,3643.5,0.49415]
[1762199367411,0.1374,3643.8,3643.6,3.70193]
[1762199367613,0.1374,3643.8,3643.3,9.768]
[1762199367914,0.1374,3643.8,3643.7,0.49412]
[1762199368215,3.2078,3644.5,3644.2,0.49405]
[1762199368810,0.49404,3644.3,3644.0,0.49407]
[1762199369116,0.49404,3644.3,3644.0,0.49408]
[1762199369304,0.49405,3644.2,3644.0,0.49408]
[1762199369510,0.63144,3644.4,3644.2,0.49405]
[1762199369814,0.49405,3644.2,3643.7,12.9768]
[1762199370110,0.1374,3644.4,3643.7,12.9768]